[Event "Schack-SM 2024: Sverigemastarklassen"]
[Site "Fortnox Arena, Hejaregatan 5, Vaxjo, Sweden"]
[Date "2024.07.01"]
[Round "3.5"]
[White "Galperin, Platon"]
[Black "Hector, Jonny"]
[Result "0-1"]
[TimeControl "90 minutes for 40 moves + 30 minutes for the rest of the game + 30 seconds per move from move one."]
[WhiteTitle "GM"]
[BlackTitle "GM"]
[WhiteElo "2551"]
[BlackElo "2410"]

1. d4 {[%clk 01:30:45]} {[%emt 00:00:15]} d5 {[%clk 01:30:51]} {[%emt
00:00:09]} 2. c4 {[%clk 01:31:11]} {[%emt 00:00:04]} c6 {[%clk 01:31:13]}
{[%emt 00:00:08]} 3. Nf3 {[%clk 01:31:38]} {[%emt 00:00:03]} Nf6 {[%clk
01:31:34]} {[%emt 00:00:08]} 4. Nc3 {[%clk 01:32:05]} {[%emt 00:00:04]} dxc4
{[%clk 01:31:54]} {[%emt 00:00:10]} 5. a4 {[%clk 01:32:32]} {[%emt 00:00:03]}
Bf5 {[%clk 01:31:54]} {[%emt 00:00:29]} 6. Ne5 {[%clk 01:32:58]} {[%emt
00:00:05]} Nbd7 {[%clk 01:31:33]} {[%emt 00:00:50]} 7. Nxc4 {[%clk 01:33:24]}
{[%emt 00:00:06]} Qc7 {[%clk 01:31:54]} {[%emt 00:00:07]} 8. g3 {[%clk
01:33:51]} {[%emt 00:00:05]} e5 {[%clk 01:31:59]} {[%emt 00:00:23]} 9. dxe5
{[%clk 01:34:18]} {[%emt 00:00:04]} Nxe5 {[%clk 01:32:19]} {[%emt 00:00:10]} 10.
Bf4 {[%clk 01:34:46]} {[%emt 00:00:02]} Nfd7 {[%clk 01:32:24]} {[%emt
00:00:25]} 11. Qc1 {[%clk 01:35:09]} {[%emt 00:00:07]} f6 {[%clk 01:23:51]}
{[%emt 00:09:02]} 12. Bg2 {[%clk 01:31:21]} {[%emt 00:04:18]} O-O-O {[%clk
01:08:33]} {[%emt 00:15:50]} 13. a5 {[%clk 01:25:17]} {[%emt 00:06:33]} Nc5
{[%clk 01:03:31]} {[%emt 00:05:31]} 14. Bxe5 {[%clk 01:20:06]} {[%emt
00:05:43]} fxe5 {[%clk 01:03:34]} {[%emt 00:00:25]} 15. Qe3 {[%clk 01:20:22]}
{[%emt 00:00:16]} Kb8 {[%clk 00:54:01]} {[%emt 00:10:01]} 16. a6 {[%clk
01:06:23]} {[%emt 00:14:30]} Nxa6 {[%clk 00:48:42]} {[%emt 00:05:49]} 17. Nxe5
{[%clk 01:00:03]} {[%emt 00:06:50]} Bc5 {[%clk 00:44:53]} {[%emt 00:04:20]} 18.
Qf4 {[%clk 01:00:29]} {[%emt 00:00:03]} g5 {[%clk 00:37:48]} {[%emt 00:07:34]}
19. Qxf5 {[%clk 00:56:50]} {[%emt 00:04:09]} Rhf8 {[%clk 00:37:43]} {[%emt
00:00:35]} 20. Qe6 {[%clk 00:52:25]} {[%emt 00:04:55]} Bxf2+ {[%clk 00:37:10]}
{[%emt 00:01:02]} 21. Kf1 {[%clk 00:52:53]} {[%emt 00:00:03]} Nc5 {[%clk
00:32:13]} {[%emt 00:05:27]} 22. Qa2 {[%clk 00:50:07]} {[%emt 00:03:16]} Qxe5
{[%clk 00:31:21]} {[%emt 00:01:20]} 23. Qxa7+ {[%clk 00:50:32]} {[%emt
00:00:07]} Kc7 {[%clk 00:29:56]} {[%emt 00:01:54]} 24. Qa5+ {[%clk 00:50:04]}
{[%emt 00:00:58]} b6 {[%clk 00:27:47]} {[%emt 00:02:40]} 25. Qb4 {[%clk
00:42:58]} {[%emt 00:07:35]} Bd4+ {[%clk 00:25:24]} {[%emt 00:02:53]} 26. Bf3
{[%clk 00:43:22]} {[%emt 00:00:07]} g4 {[%clk 00:22:54]} {[%emt 00:02:58]} 27.
Ra7+ {[%clk 00:43:01]} {[%emt 00:00:52]} Nb7 {[%clk 00:19:17]} {[%emt
00:04:07]} 28. Nb5+ {[%clk 00:42:52]} {[%emt 00:00:39]} Kb8 {[%clk 00:17:28]}
{[%emt 00:02:20]} 29. Qa4 {[%clk 00:39:42]} {[%emt 00:03:40]} Na5 {[%clk
00:14:34]} {[%emt 00:03:23]} 30. Rxa5 {[%clk 00:35:10]} {[%emt 00:05:03]} bxa5
{[%clk 00:14:46]} {[%emt 00:00:17]} 31. Nxd4 {[%clk 00:35:22]} {[%emt
00:00:18]} Rxd4 {[%clk 00:13:33]} {[%emt 00:01:42]} 32. Qxc6 {[%clk 00:35:39]}
{[%emt 00:00:14]} Rd1+ {[%clk 00:12:21]} {[%emt 00:01:41]} 33. Kf2 {[%clk
00:36:00]} {[%emt 00:00:11]} Rxf3+ {[%clk 00:12:28]} {[%emt 00:00:22]} 0-1

[Event "Schack-SM 2024: Sverigemastarklassen"]
[Site "Fortnox Arena, Hejaregatan 5, Vaxjo, Sweden"]
[Date "2024.06.30"]
[Round "2.3"]
[White "Pantzar, Milton"]
[Black "Semcesen, Daniel"]
[Result "1/2-1/2"]
[TimeControl "90 minutes for 40 moves + 30 minutes for the rest of the game + 30 seconds per move from move one."]
[WhiteTitle "IM"]
[BlackTitle "GM"]
[WhiteElo "2480"]
[BlackElo "2451"]

1. d4 {[%clk 01:30:45]} {[%emt 00:00:15]} d5 {[%clk 01:30:07]} {[%emt
00:00:53]} 2. Nf3 {[%clk 01:30:42]} {[%emt 00:00:33]} Bf5 {[%clk 01:29:27]}
{[%emt 00:01:10]} 3. c4 {[%clk 01:30:24]} {[%emt 00:00:48]} e6 {[%clk
01:29:31]} {[%emt 00:00:27]} 4. Nc3 {[%clk 01:30:38]} {[%emt 00:00:17]} Nc6
{[%clk 01:29:15]} {[%emt 00:00:46]} 5. cxd5 {[%clk 01:30:26]} {[%emt 00:00:42]}
exd5 {[%clk 01:29:34]} {[%emt 00:00:10]} 6. Bf4 {[%clk 01:30:47]} {[%emt
00:00:09]} Nf6 {[%clk 01:28:19]} {[%emt 00:01:46]} 7. e3 {[%clk 01:29:28]}
{[%emt 00:01:48]} Bb4 {[%clk 01:24:50]} {[%emt 00:03:59]} 8. Bd3 {[%clk
01:28:35]} {[%emt 00:01:23]} Bxd3 {[%clk 01:22:33]} {[%emt 00:02:47]} 9. Qxd3
{[%clk 01:28:58]} {[%emt 00:00:07]} O-O {[%clk 01:20:27]} {[%emt 00:02:35]} 10.
O-O {[%clk 01:26:51]} {[%emt 00:02:37]} h6 {[%clk 01:18:25]} {[%emt 00:02:34]}
11. Rac1 {[%clk 01:17:17]} {[%emt 00:10:04]} a6 {[%clk 01:14:33]} {[%emt
00:04:21]} 12. Be5 {[%clk 01:06:06]} {[%emt 00:11:42]} Ne8 {[%clk 01:06:39]}
{[%emt 00:08:24]} 13. Bg3 {[%clk 01:01:07]} {[%emt 00:05:29]} Nf6 {[%clk
00:55:05]} {[%emt 00:12:03]} 14. Rfd1 {[%clk 00:53:43]} {[%emt 00:07:54]} Re8
{[%clk 00:47:10]} {[%emt 00:08:25]} 15. Ne5 {[%clk 00:40:34]} {[%emt 00:13:40]}
Ne7 {[%clk 00:44:48]} {[%emt 00:02:51]} 16. Na4 {[%clk 00:34:01]} {[%emt
00:07:03]} Bd6 {[%clk 00:42:01]} {[%emt 00:03:18]} 17. b4 {[%clk 00:28:01]}
{[%emt 00:06:31]} c6 {[%clk 00:26:32]} {[%emt 00:15:58]} 18. Nc5 {[%clk
00:26:28]} {[%emt 00:02:03]} Qc7 {[%clk 00:25:01]} {[%emt 00:02:00]} 19. a4
{[%clk 00:24:32]} {[%emt 00:02:27]} Nh5 {[%clk 00:24:39]} {[%emt 00:00:52]} 20.
Nf3 {[%clk 00:15:27]} {[%emt 00:09:35]} Nxg3 {[%clk 00:22:30]} {[%emt
00:02:38]} 21. hxg3 {[%clk 00:15:52]} {[%emt 00:00:04]} g6 {[%clk 00:18:59]}
{[%emt 00:04:01]} 22. Nd2 {[%clk 00:12:13]} {[%emt 00:04:10]} Kg7 {[%clk
00:17:10]} {[%emt 00:02:18]} 23. Qc3 {[%clk 00:07:39]} {[%emt 00:05:05]} h5
{[%clk 00:15:35]} {[%emt 00:02:05]} 24. b5 {[%clk 00:05:36]} {[%emt 00:02:33]}
axb5 {[%clk 00:12:00]} {[%emt 00:04:05]} 25. axb5 {[%clk 00:06:04]} {[%emt
00:00:02]} Nf5 {[%clk 00:10:37]} {[%emt 00:01:53]} 26. bxc6 {[%clk 00:04:38]}
{[%emt 00:01:56]} bxc6 {[%clk 00:10:56]} {[%emt 00:00:11]} 27. e4 {[%clk
00:04:27]} {[%emt 00:00:42]} dxe4 {[%clk 00:09:27]} {[%emt 00:01:58]} 28. Ndxe4
{[%clk 00:04:50]} {[%emt 00:00:07]} Bxc5 {[%clk 00:06:46]} {[%emt 00:03:11]} 29.
Nxc5 {[%clk 00:03:52]} {[%emt 00:01:28]} Kg8 {[%clk 00:05:07]} {[%emt
00:02:09]} 30. Nd3 {[%clk 00:03:41]} {[%emt 00:00:42]} Qb6 {[%clk 00:04:25]}
{[%emt 00:01:12]} 31. Nf4 {[%clk 00:01:26]} {[%emt 00:02:44]} Ne7 {[%clk
00:03:02]} {[%emt 00:01:54]} 32. Qc4 {[%clk 00:01:06]} {[%emt 00:00:51]} Rad8
{[%clk 00:02:45]} {[%emt 00:00:46]} 33. Rb1 {[%clk 00:01:22]} {[%emt 00:00:15]}
Qa7 {[%clk 00:02:57]} {[%emt 00:00:18]} 34. Ra1 {[%clk 00:01:09]} {[%emt
00:00:43]} Qd7 {[%clk 00:02:57]} {[%emt 00:00:28]} 35. Rac1 {[%clk 00:01:02]}
{[%emt 00:00:38]} Qf5 {[%clk 00:02:13]} {[%emt 00:01:14]} 36. Re1 {[%clk
00:01:05]} {[%emt 00:00:27]} Qf6 {[%clk 00:02:13]} {[%emt 00:00:30]} 37. Re5
{[%clk 00:00:52]} {[%emt 00:00:43]} Rd7 {[%clk 00:01:05]} {[%emt 00:01:39]} 38.
Rce1 {[%clk 00:00:47]} {[%emt 00:00:35]} Red8 {[%clk 00:01:05]} {[%emt
00:00:30]} 39. Qc5 {[%clk 00:00:46]} {[%emt 00:00:31]} Nd5 {[%clk 00:00:38]}
{[%emt 00:00:58]} 40. Re8+ {[%clk 00:00:39]} {[%emt 00:00:37]} Rxe8 {[%clk
00:00:39]} {[%emt 00:00:28]} 41. Rxe8+ {[%clk 00:00:53]} {[%emt 00:00:17]} Kh7
{[%clk 00:00:54]} {[%emt 00:00:14]} 42. Nh3 {[%clk 00:22:49]} {[%emt 00:08:34]}
Re7 {[%clk 00:23:46]} {[%emt 00:07:38]} 43. Rxe7 {[%clk 00:16:12]} {[%emt
00:07:07]} Nxe7 {[%clk 00:24:06]} {[%emt 00:00:11]} 1/2-1/2

[Event "Schack-SM 2024: Sverigemastarklassen"]
[Site "Fortnox Arena, Hejaregatan 5, Vaxjo, Sweden"]
[Date "2024.06.30"]
[Round "2.4"]
[White "Hillarp Persson, Tiger"]
[Black "Galperin, Platon"]
[Result "1-0"]
[TimeControl "90 minutes for 40 moves + 30 minutes for the rest of the game + 30 seconds per move from move one."]
[WhiteTitle "GM"]
[BlackTitle "GM"]
[WhiteElo "2455"]
[BlackElo "2551"]

1. Nf3 {[%clk 01:30:56]} {[%emt 00:00:05]} d5 {[%clk 01:30:44]} {[%emt
00:00:15]} 2. g3 {[%clk 01:31:20]} {[%emt 00:00:07]} Nf6 {[%clk 01:31:07]}
{[%emt 00:00:07]} 3. Bg2 {[%clk 01:31:45]} {[%emt 00:00:06]} e6 {[%clk
01:31:32]} {[%emt 00:00:04]} 4. O-O {[%clk 01:32:01]} {[%emt 00:00:14]} Be7
{[%clk 01:31:58]} {[%emt 00:00:04]} 5. c4 {[%clk 01:30:25]} {[%emt 00:02:05]}
O-O {[%clk 01:32:15]} {[%emt 00:00:11]} 6. d4 {[%clk 01:30:36]} {[%emt
00:00:20]} Nbd7 {[%clk 01:32:38]} {[%emt 00:00:07]} 7. Qc2 {[%clk 01:29:49]}
{[%emt 00:01:17]} a5 {[%clk 01:33:03]} {[%emt 00:00:06]} 8. b3 {[%clk
01:29:59]} {[%emt 00:00:21]} a4 {[%clk 01:33:26]} {[%emt 00:00:08]} 9. Ba3
{[%clk 01:30:23]} {[%emt 00:00:04]} b6 {[%clk 01:21:00]} {[%emt 00:12:57]} 10.
b4 {[%clk 01:19:58]} {[%emt 00:10:53]} c6 {[%clk 01:09:22]} {[%emt 00:12:09]}
11. cxd5 {[%clk 01:11:48]} {[%emt 00:08:40]} Nxd5 {[%clk 01:04:00]} {[%emt
00:05:52]} 12. Qd2 {[%clk 00:55:37]} {[%emt 00:16:40]} c5 {[%clk 01:03:57]}
{[%emt 00:00:35]} 13. bxc5 {[%clk 00:55:43]} {[%emt 00:00:23]} bxc5 {[%clk
01:04:23]} {[%emt 00:00:05]} 14. Rc1 {[%clk 00:54:39]} {[%emt 00:01:32]} Bb7
{[%clk 00:43:39]} {[%emt 00:21:15]} 15. dxc5 {[%clk 00:48:03]} {[%emt
00:07:07]} Rc8 {[%clk 00:42:56]} {[%emt 00:01:12]} 16. c6 {[%clk 00:40:20]}
{[%emt 00:08:12]} Rxc6 {[%clk 00:43:16]} {[%emt 00:00:10]} 17. Rxc6 {[%clk
00:40:43]} {[%emt 00:00:07]} Bxc6 {[%clk 00:43:40]} {[%emt 00:00:06]} 18. Nd4
{[%clk 00:40:36]} {[%emt 00:00:37]} Bb7 {[%clk 00:38:52]} {[%emt 00:05:17]} 19.
Qb2 {[%clk 00:25:27]} {[%emt 00:15:39]} N7b6 {[%clk 00:29:24]} {[%emt
00:09:56]} 20. Bxe7 {[%clk 00:23:33]} {[%emt 00:02:25]} Qxe7 {[%clk 00:29:49]}
{[%emt 00:00:06]} 21. Na3 {[%clk 00:23:28]} {[%emt 00:00:34]} Ba8 {[%clk
00:20:46]} {[%emt 00:09:33]} 22. Rc1 {[%clk 00:22:20]} {[%emt 00:01:39]} h6
{[%clk 00:20:47]} {[%emt 00:00:29]} 23. Nab5 {[%clk 00:17:57]} {[%emt
00:04:54]} Nd7 {[%clk 00:19:18]} {[%emt 00:01:58]} 24. Qd2 {[%clk 00:11:39]}
{[%emt 00:06:47]} Ne5 {[%clk 00:11:06]} {[%emt 00:08:44]} 25. Qa5 {[%clk
00:06:56]} {[%emt 00:05:12]} Qg5 {[%clk 00:10:24]} {[%emt 00:01:12]} 26. Rf1
{[%clk 00:05:04]} {[%emt 00:02:20]} Ng4 {[%clk 00:07:48]} {[%emt 00:03:06]} 27.
Qxa4 {[%clk 00:04:54]} {[%emt 00:00:41]} Qh5 {[%clk 00:07:06]} {[%emt
00:01:11]} 28. h4 {[%clk 00:03:47]} {[%emt 00:01:38]} Nb6 {[%clk 00:05:06]}
{[%emt 00:02:30]} 29. Qb3 {[%clk 00:03:41]} {[%emt 00:00:36]} Bxg2 {[%clk
00:04:59]} {[%emt 00:00:37]} 30. Kxg2 {[%clk 00:04:02]} {[%emt 00:00:08]} Nd5
{[%clk 00:02:57]} {[%emt 00:02:32]} 31. Nc3 {[%clk 00:01:27]} {[%emt 00:03:06]}
Nde3+ {[%clk 00:00:34]} {[%emt 00:02:52]} 32. fxe3 {[%clk 00:01:46]} {[%emt
00:00:10]} Nxe3+ {[%clk 00:01:00]} {[%emt 00:00:05]} 33. Kf2 {[%clk 00:01:56]}
{[%emt 00:00:18]} Nxf1 {[%clk 00:01:23]} {[%emt 00:00:07]} 34. Kxf1 {[%clk
00:02:21]} {[%emt 00:00:06]} Qg4 {[%clk 00:01:42]} {[%emt 00:00:11]} 35. Ncb5
{[%clk 00:01:39]} {[%emt 00:01:13]} e5 {[%clk 00:02:01]} {[%emt 00:00:11]} 36.
Nc6 {[%clk 00:01:12]} {[%emt 00:00:57]} Qe4 {[%clk 00:01:54]} {[%emt 00:00:37]}
37. Ne7+ {[%clk 00:01:05]} {[%emt 00:00:37]} Kh8 {[%clk 00:02:21]} {[%emt
00:00:03]} 38. Qd5 {[%clk 00:01:02]} {[%emt 00:00:33]} Qb4 {[%clk 00:00:43]}
{[%emt 00:02:08]} 39. Nd6 {[%clk 00:00:59]} {[%emt 00:00:33]} Qg4 {[%clk
00:00:36]} {[%emt 00:00:37]} 40. Qxe5 {[%clk 00:00:42]} {[%emt 00:00:49]} f5
{[%clk 00:00:32]} {[%emt 00:00:33]} 41. Ndxf5 {[%clk 00:26:25]} {[%emt
00:04:47]} 1-0

[Event "Schack-SM 2024: Sverigemastarklassen"]
[Site "Fortnox Arena, Hejaregatan 5, Vaxjo, Sweden"]
[Date "2024.06.30"]
[Round "2.5"]
[White "Hector, Jonny"]
[Black "Sivuk, Vitaly"]
[Result "0-1"]
[TimeControl "90 minutes for 40 moves + 30 minutes for the rest of the game + 30 seconds per move from move one."]
[WhiteTitle "GM"]
[BlackTitle "GM"]
[WhiteElo "2410"]
[BlackElo "2569"]

1. e4 {[%clk 01:30:53]} {[%emt 00:00:04]} c6 {[%clk 01:30:07]} {[%emt
00:00:54]} 2. Nc3 {[%clk 01:31:01]} {[%emt 00:00:21]} d5 {[%clk 01:30:29]}
{[%emt 00:00:08]} 3. d4 {[%clk 01:31:11]} {[%emt 00:00:20]} dxe4 {[%clk
01:30:46]} {[%emt 00:00:14]} 4. Nxe4 {[%clk 01:31:34]} {[%emt 00:00:06]} Nd7
{[%clk 01:31:04]} {[%emt 00:00:13]} 5. Ng5 {[%clk 01:30:51]} {[%emt 00:01:12]}
Ngf6 {[%clk 01:31:17]} {[%emt 00:00:17]} 6. Bc4 {[%clk 01:30:44]} {[%emt
00:00:37]} e6 {[%clk 01:31:35]} {[%emt 00:00:12]} 7. Qe2 {[%clk 01:30:24]}
{[%emt 00:00:49]} Nb6 {[%clk 01:31:47]} {[%emt 00:00:20]} 8. Bd3 {[%clk
01:30:03]} {[%emt 00:00:49]} h6 {[%clk 01:31:34]} {[%emt 00:00:44]} 9. N5f3
{[%clk 01:30:26]} {[%emt 00:00:06]} c5 {[%clk 01:31:55]} {[%emt 00:00:10]} 10.
Be3 {[%clk 01:30:01]} {[%emt 00:00:55]} Nbd5 {[%clk 01:32:08]} {[%emt
00:00:17]} 11. c3 {[%clk 01:23:03]} {[%emt 00:07:27]} cxd4 {[%clk 01:29:32]}
{[%emt 00:03:06]} 12. Bxd4 {[%clk 01:17:01]} {[%emt 00:06:32]} Nf4 {[%clk
01:25:46]} {[%emt 00:04:16]} 13. Qd2 {[%clk 01:09:22]} {[%emt 00:08:08]} Nxd3+
{[%clk 01:21:42]} {[%emt 00:04:35]} 14. Qxd3 {[%clk 01:09:49]} {[%emt
00:00:03]} Qd5 {[%clk 01:21:47]} {[%emt 00:00:25]} 15. O-O-O {[%clk 01:08:28]}
{[%emt 00:01:50]} Be7 {[%clk 01:17:38]} {[%emt 00:04:40]} 16. c4 {[%clk
01:05:41]} {[%emt 00:03:17]} Qa5 {[%clk 01:07:28]} {[%emt 00:10:40]} 17. Kb1
{[%clk 01:03:28]} {[%emt 00:02:43]} b6 {[%clk 01:04:42]} {[%emt 00:03:17]} 18.
Ne2 {[%clk 00:56:11]} {[%emt 00:07:46]} O-O {[%clk 01:04:33]} {[%emt 00:00:39]}
19. Nc3 {[%clk 00:51:53]} {[%emt 00:04:48]} Bb7 {[%clk 01:03:57]} {[%emt
00:01:06]} 20. Rhe1 {[%clk 00:48:59]} {[%emt 00:03:24]} Rfd8 {[%clk 01:03:11]}
{[%emt 00:01:17]} 21. Re5 {[%clk 00:45:57]} {[%emt 00:03:31]} Bc5 {[%clk
00:55:06]} {[%emt 00:08:34]} 22. Qe2 {[%clk 00:38:02]} {[%emt 00:08:25]} Ng4
{[%clk 00:51:47]} {[%emt 00:03:51]} 23. Rh5 {[%clk 00:31:29]} {[%emt 00:07:02]}
g6 {[%clk 00:50:54]} {[%emt 00:01:23]} 24. Rh4 {[%clk 00:23:59]} {[%emt
00:08:00]} Bxf3 {[%clk 00:46:54]} {[%emt 00:04:30]} 25. gxf3 {[%clk 00:20:21]}
{[%emt 00:04:09]} Bxd4 {[%clk 00:46:09]} {[%emt 00:01:14]} 26. Nb5 {[%clk
00:19:42]} {[%emt 00:01:09]} Bf6 {[%clk 00:44:47]} {[%emt 00:01:53]} 27. Rxg4
{[%clk 00:19:50]} {[%emt 00:00:22]} Rxd1+ {[%clk 00:45:10]} {[%emt 00:00:06]}
28. Qxd1 {[%clk 00:20:14]} {[%emt 00:00:06]} Rd8 {[%clk 00:45:33]} {[%emt
00:00:07]} 29. Qc1 {[%clk 00:13:59]} {[%emt 00:06:44]} Rd2 {[%clk 00:45:06]}
{[%emt 00:00:56]} 0-1

[Event "Schack-SM 2024: Sverigemastarklassen"]
[Site "Fortnox Arena, Hejaregatan 5, Vaxjo, Sweden"]
[Date "2024.06.30"]
[Round "2.1"]
[White "Blomqvist, Erik"]
[Black "Lokander, Martin"]
[Result "0-1"]
[TimeControl "90 minutes for 40 moves + 30 minutes for the rest of the game + 30 seconds per move from move one."]
[WhiteTitle "GM"]
[BlackTitle "IM"]
[WhiteElo "2527"]
[BlackElo "2474"]

1. e4 {[%clk 01:30:51]} {[%emt 00:00:03]} e5 {[%clk 01:30:16]} {[%emt
00:00:44]} 2. Nf3 {[%clk 01:31:13]} {[%emt 00:00:08]} Nc6 {[%clk 01:30:37]}
{[%emt 00:00:11]} 3. Bc4 {[%clk 01:31:30]} {[%emt 00:00:12]} d6 {[%clk
01:30:18]} {[%emt 00:00:50]} 4. d4 {[%clk 01:30:01]} {[%emt 00:01:58]} Nf6
{[%clk 01:29:47]} {[%emt 00:01:03]} 5. dxe5 {[%clk 01:09:41]} {[%emt 00:20:49]}
dxe5 {[%clk 01:28:17]} {[%emt 00:02:01]} 6. Qe2 {[%clk 01:09:58]} {[%emt
00:00:12]} Bd6 {[%clk 01:17:37]} {[%emt 00:11:10]} 7. O-O {[%clk 01:09:07]}
{[%emt 00:01:21]} Qe7 {[%clk 01:15:47]} {[%emt 00:02:21]} 8. a4 {[%clk
01:05:10]} {[%emt 00:04:26]} O-O {[%clk 01:05:31]} {[%emt 00:10:47]} 9. h3
{[%clk 00:59:50]} {[%emt 00:05:49]} Be6 {[%clk 01:01:21]} {[%emt 00:04:40]} 10.
a5 {[%clk 00:43:22]} {[%emt 00:16:58]} a6 {[%clk 00:59:17]} {[%emt 00:02:35]}
11. c3 {[%clk 00:43:14]} {[%emt 00:00:38]} Bxc4 {[%clk 00:48:57]} {[%emt
00:10:50]} 12. Qxc4 {[%clk 00:43:38]} {[%emt 00:00:06]} Nd8 {[%clk 00:47:11]}
{[%emt 00:02:15]} 13. Be3 {[%clk 00:41:41]} {[%emt 00:02:27]} Ne6 {[%clk
00:45:25]} {[%emt 00:02:16]} 14. Ng5 {[%clk 00:29:45]} {[%emt 00:12:26]} Nf4
{[%clk 00:36:04]} {[%emt 00:09:52]} 15. Bxf4 {[%clk 00:25:34]} {[%emt
00:04:40]} exf4 {[%clk 00:36:23]} {[%emt 00:00:06]} 16. Nd2 {[%clk 00:23:54]}
{[%emt 00:02:15]} Rfe8 {[%clk 00:33:19]} {[%emt 00:03:34]} 17. Rfe1 {[%clk
00:23:30]} {[%emt 00:00:54]} Nd7 {[%clk 00:30:04]} {[%emt 00:03:46]} 18. Ngf3
{[%clk 00:23:47]} {[%emt 00:00:13]} Ne5 {[%clk 00:29:31]} {[%emt 00:01:04]} 19.
Nxe5 {[%clk 00:24:08]} {[%emt 00:00:09]} Qxe5 {[%clk 00:28:33]} {[%emt
00:01:27]} 20. Nf3 {[%clk 00:24:05]} {[%emt 00:00:32]} Qb5 {[%clk 00:26:34]}
{[%emt 00:02:29]} 21. Qa2 {[%clk 00:20:02]} {[%emt 00:04:34]} Bc5 {[%clk
00:24:41]} {[%emt 00:02:23]} 22. Rad1 {[%clk 00:18:07]} {[%emt 00:02:25]} Rad8
{[%clk 00:23:43]} {[%emt 00:01:28]} 23. Rxd8 {[%clk 00:09:10]} {[%emt
00:09:28]} Rxd8 {[%clk 00:23:58]} {[%emt 00:00:15]} 24. e5 {[%clk 00:09:35]}
{[%emt 00:00:04]} Be7 {[%clk 00:12:19]} {[%emt 00:12:10]} 25. e6 {[%clk
00:10:00]} {[%emt 00:00:04]} Qd5 {[%clk 00:12:01]} {[%emt 00:00:49]} 26. Qa4
{[%clk 00:07:52]} {[%emt 00:02:37]} fxe6 {[%clk 00:10:35]} {[%emt 00:01:58]} 27.
Qxf4 {[%clk 00:08:19]} {[%emt 00:00:03]} Qxa5 {[%clk 00:10:00]} {[%emt
00:01:04]} 28. Qc4 {[%clk 00:08:30]} {[%emt 00:00:18]} Qd5 {[%clk 00:09:25]}
{[%emt 00:01:06]} 29. Qxc7 {[%clk 00:08:30]} {[%emt 00:00:30]} Bf6 {[%clk
00:09:48]} {[%emt 00:00:07]} 30. Qb6 {[%clk 00:04:24]} {[%emt 00:04:35]} Rd6
{[%clk 00:09:34]} {[%emt 00:00:46]} 31. Qb4 {[%emt 00:00:33]} h6 32. h4 b5 33.
Ra1 Rc6 34. Qf4 Rc4 35. Qb8+ Kh7 36. Rxa6 e5 37. Rd6 Qc5 {time forfeit} 0-1